fUSD/lending_fUSD_20250118
["ID","MTS","AMOUNT","RATE_DAILY","PERIOD"]
[349399367,1737165032789,-232.06622737,0.00019796,2]
[349399368,1737165032801,-597.06377263,0.00019796,2]
[349399369,1737165032813,-160.94786863,0.00019805,2]
[349399370,1737165032822,-230.32284454,0.00019873,2]
[349399371,1737165032847,-278.21533057,0.00019873,2]
[349399372,1737165032856,-305.0,0.00019879,2]
[349399373,1737165032866,-7255.41929881,0.0001988,2]
[349399374,1737165032877,-1571.35537231,0.0001988,2]
[349399375,1737165032889,-21037.87778146,0.0001988,2]
[349399376,1737165037076,-1141.93057131,0.0001988,2]
[349399377,1737165037087,-69395.98936251,0.0001988,2]
[349399378,1737165037099,-1568.00595115,0.0001988,2]
[349399381,1737165038121,-287.9999955,0.0001988,2]
[349399382,1737165038132,-1485.80633871,0.0001988,2]
[349399383,1737165038143,-1771.28400005,0.0001988,2]
[349399384,1737165038155,-106489.03400009,0.0001988,2]
[349399386,1737165038311,-363.60613795,0.0001988,2]
[349399388,1737165038322,-6080.71885694,0.0001988,2]
[349399411,1737165040239,-2420732.61775875,0.0001988,2]
[349399412,1737165040249,-585624.0100385,0.0001988,2]
[349399664,1737165043114,-826.63609716,0.000188,2]
[349399666,1737165043126,-296.13443335,0.000188,2]
[349399672,1737165043316,-389.94305827,0.000188,2]
[349399674,1737165043327,-255.17694173,0.0001988,2]
[349399696,1737165043546,-4208.19490955,0.0001988,2]
[349399698,1737165043558,-4200.04995,0.0001988,2]
[349399701,1737165043574,-296.21242944,0.0001988,2]
[349399703,1737165043586,-434905.78611988,0.0001988,2]
[349399705,1737165043595,-1795.19102566,0.00019893,2]
[349399707,1737165043605,-1269.0,0.00019906,2]
[349399709,1737165043615,-2017.0,0.00019906,2]
[349399711,1737165043624,-150.487,0.00019906,2]
[349399713,1737165043633,-569.195,0.00019906,2]
[349399715,1737165043642,-635.0,0.00019906,2]
[349399717,1737165043651,-1863.0,0.00019906,2]
[349399719,1737165043661,-2955.264,0.00019906,2]
[349399721,1737165043670,-1260.0,0.00019906,2]
[349399723,1737165043679,-907.0,0.00019906,2]
[349399724,1737165043688,-824.0,0.00019906,2]
[349399726,1737165043698,-539.448,0.00019906,2]
[349399728,1737165043707,-150.26,0.00019906,2]
[349399730,1737165043716,-150.0,0.00019906,2]
[349399732,1737165043726,-1175.0,0.00019906,2]
[349399734,1737165043734,-150.0,0.00019906,2]
[349399736,1737165043743,-3900.0,0.00019906,2]
[349399738,1737165043753,-1105.0,0.00019906,2]
[349399740,1737165043762,-500.0,0.00019928,2]
[349399742,1737165043771,-300.0,0.0002,2]
[349399744,1737165043780,-6565.0,0.0002,2]
[349399746,1737165043789,-1000.0,0.0002,2]
[349399748,1737165043798,-1795.19102566,0.00020007,2]
[349399750,1737165043808,-3000.0,0.0002009,2]
[349399752,1737165043818,-1795.19102566,0.0002012,2]
[349399754,1737165043827,-155.4184866,0.00020175,2]
[349399756,1737165043836,-151.0,0.00020179,2]
[349399758,1737165043845,-1795.19102566,0.00020233,2]
[349399760,1737165043855,-29493.3832877,0.00020291,2]
[349399762,1737165043863,-2000.0,0.00020291,2]
[349399764,1737165043873,-200.0,0.00020291,2]
[349399766,1737165043882,-318.6427,0.000203,2]
[349399768,1737165043891,-1795.19102566,0.00020347,2]
[349399770,1737165043900,-1000.0,0.00020398,2]
[349399772,1737165043909,-1000.0,0.000204,2]
[349399786,1737165044035,-925.0,0.000204,2]
[349399788,1737165044049,-366.0,0.000204,2]
[349399791,1737165044059,-500.0,0.00020422,2]
[349399792,1737165044068,-1021.77033047,0.00020432,2]
[349399794,1737165044078,-1795.19102566,0.0002046,2]
[349399796,1737165044087,-802.6908,0.00020479,2]
[349399798,1737165044096,-286.71792293,0.00020486,2]
[349399801,1737165044105,-500.0,0.00020487,2]
[349399802,1737165044115,-1000.0,0.00020487,2]
[349399804,1737165044124,-1998.4484,0.00020487,2]
[349399807,1737165044133,-527.0727,0.00020487,2]
[349399809,1737165044143,-5000.0,0.00020487,2]
[349399810,1737165044152,-2000.0,0.00020494,2]
[349399812,1737165044161,-200.0,0.00020494,2]
[349399815,1737165044171,-1795.19102566,0.00020573,2]
[349399816,1737165044180,-150.0,0.00020582,2]
[349399818,1737165044190,-1101.8579491,0.00020583,2]
[349399821,1737165044199,-248.0259762,0.00020583,2]
[349399822,1737165044209,-1844.2364055,0.00020583,2]
[349399824,1737165044219,-1112.42738633,0.00020586,5]
[349399826,1737165044229,-212642.8433846,0.00020587,2]
[349399828,1737165044240,-4636.57,0.00020587,2]
[349399830,1737165044250,-200.0,0.00020587,2]
[349399833,1737165044262,-200.0,0.00020587,2]
[349399834,1737165044273,-415.96058369,0.0002059,2]
[349399837,1737165044284,-3157.1432292,0.0002059,2]
[349399839,1737165044293,-150.0,0.00020604,2]
[349399841,1737165044303,-150.0,0.00020617,2]
[349399843,1737165044312,-150.0,0.00020622,2]
[349399845,1737165044321,-150.0,0.00020627,2]
[349399847,1737165044330,-500.0,0.0002063,2]
[349399849,1737165044340,-150.0,0.00020631,2]
[349399850,1737165044350,-150.0,0.00020635,2]
[349399852,1737165044359,-150.0,0.00020636,2]
[349399854,1737165044369,-293.8776922,0.00020638,2]
[349399856,1737165044378,-150.0,0.0002064,2]
[349399859,1737165044387,-150.0,0.00020641,2]
[349399860,1737165044397,-183.85807032,0.00020642,2]
[349399862,1737165044407,-150.0,0.00020644,2]
[349399864,1737165044416,-150.0,0.00020644,2]
[349399867,1737165044426,-150.0,0.00020647,2]
[349399868,1737165044436,-150.0,0.00020648,2]
[349399870,1737165044451,-150.0,0.00020649,2]
[349399873,1737165044462,-150.0,0.0002065,2]
[349399875,1737165044471,-150.0,0.00020651,2]
[349399876,1737165044483,-150.0,0.00020653,2]
[349399879,1737165044493,-150.0,0.00020657,2]
[349399881,1737165044503,-150.0,0.00020661,2]
[349399883,1737165044512,-150.0,0.00020666,2]
[349399885,1737165044523,-150.0,0.00020671,2]
[349399887,1737165044532,-150.0,0.00020672,2]
[349399889,1737165044542,-150.0,0.00020681,2]
[349399891,1737165044551,-150.0,0.00020683,2]
[349399893,1737165044560,-150.0,0.00020684,2]
[349399895,1737165044569,-150.0,0.00020686,2]
[349399897,1737165044578,-1795.19102566,0.00020687,2]
[349399899,1737165044587,-150.0,0.00020693,2]
[349399901,1737165044598,-150.0,0.00020694,2]
[349399903,1737165044607,-150.0,0.00020695,2]
[349399904,1737165044616,-150.0,0.00020696,2]
[349399906,1737165044626,-150.0,0.00020697,2]
[349399909,1737165044635,-270.2551,0.00020698,2]
[349399911,1737165044644,-2000.0,0.00020699,2]
[349399912,1737165044653,-200.0,0.00020699,2]
[349399915,1737165044663,-314.37644342,0.000207,2]
[349399917,1737165044672,-150.0,0.00020702,2]
[349399918,1737165044682,-150.0,0.00020703,2]
[349399921,1737165044691,-150.0,0.00020712,2]
[349399922,1737165044701,-1000.0,0.00020713,2]
[349399924,1737165044710,-150.0,0.00020715,2]
[349399926,1737165044720,-150.0,0.0002072,2]
[349399928,1737165044729,-153.8950474,0.00020722,2]
[349399931,1737165044739,-166.1,0.00020727,2]
[349399932,1737165044749,-150.0,0.00020728,2]
[349399934,1737165044758,-150.0,0.00020734,2]
[349399936,1737165044768,-150.56121117,0.00020735,2]
[349399938,1737165044777,-150.0,0.00020735,2]
[349399941,1737165044787,-150.0,0.00020735,2]
[349399942,1737165044796,-150.49350749,0.00020735,2]
[349399944,1737165044805,-500.0,0.00020735,2]
[349399946,1737165044815,-500.0,0.00020735,2]
[349399948,1737165044824,-150.0,0.00020736,2]
[349399950,1737165044834,-829.13,0.00020739,2]
[349399953,1737165044843,-150.0,0.0002074,2]
[349399954,1737165044852,-150.0,0.00020741,2]
[349399957,1737165044862,-150.0,0.00020743,2]
[349399958,1737165044871,-150.0,0.00020745,2]
[349399961,1737165044880,-150.0,0.00020748,2]
[349399962,1737165044890,-150.0,0.00020759,2]
[349399964,1737165044900,-150.0,0.00020759,2]
[349399967,1737165044909,-150.0,0.0002076,2]
[349399969,1737165044919,-500.0,0.00020762,2]
[349399971,1737165044928,-500.0,0.00020762,2]
[349399973,1737165044937,-500.0,0.00020762,2]
[349399975,1737165044946,-500.0,0.00020762,2]
[349399977,1737165044955,-500.0,0.00020762,2]
[349399978,1737165044966,-500.0,0.00020762,2]
[349399980,1737165044975,-500.0,0.00020762,2]
[349399982,1737165044986,-500.0,0.00020762,2]
[349399985,1737165044996,-500.0,0.00020762,2]
[349399987,1737165045005,-500.0,0.00020762,2]
[349399988,1737165045015,-500.0,0.00020762,2]
[349399990,1737165045024,-500.0,0.00020762,2]
[349399992,1737165045033,-500.0,0.00020762,2]
[349399994,1737165045043,-500.0,0.00020762,2]
[349399997,1737165045053,-500.0,0.00020762,2]
[349399998,1737165045063,-500.0,0.00020762,2]
[349400000,1737165045073,-500.0,0.00020762,2]
[349400002,1737165045083,-500.0,0.00020762,2]
[349400005,1737165045094,-150.0,0.00020762,2]
[349400006,1737165045104,-150.0,0.00020762,2]
[349400008,1737165045113,-500.0,0.00020762,2]
[349400010,1737165045122,-500.0,0.00020762,2]
[349400012,1737165045132,-150.0,0.00020771,2]
[349400014,1737165045141,-150.0,0.00020776,2]
[349400016,1737165045150,-150.0,0.00020778,2]
[349400018,1737165045160,-150.0,0.00020785,2]
[349400020,1737165045169,-500.0,0.0002079,2]
[349400022,1737165045179,-500.0,0.0002079,2]
[349400024,1737165045189,-200.0,0.00020793,2]
[349400026,1737165045198,-150.0,0.00020796,2]
[349400028,1737165045207,-506.75,0.00020797,2]
[349400030,1737165045218,-150.0,0.00020797,2]
[349400032,1737165045227,-96992.73201062,0.00020798,2]
[349400034,1737165045236,-150.0,0.00020798,2]
[349400036,1737165045246,-68586.8917909,0.000208,2]
[349400038,1737165045255,-580.05349146,0.000208,2]
[349400040,1737165045264,-160.94786862,0.000208,2]
[349400042,1737165045273,-314.37644342,0.000208,2]
[349400044,1737165045283,-1795.19102566,0.000208,2]
[349400046,1737165045293,-300.0,0.00020801,2]
[349400048,1737165045303,-150.0,0.00020803,2]
[349400050,1737165045314,-150.0,0.00020803,2]
[349400052,1737165045324,-150.0,0.00020805,2]
[349400054,1737165045334,-150.0,0.00020806,2]
[349400056,1737165045343,-500.0,0.00020817,2]
[349400058,1737165045352,-500.0,0.00020817,2]
[349400060,1737165045362,-150.0,0.00020826,2]
[349400062,1737165045372,-150.0,0.0002083,2]
[349400064,1737165045381,-150.0,0.00020834,2]
[349400066,1737165045391,-150.0,0.00020837,2]
[349400078,1737165045495,-500.0,0.00020845,2]
[349400080,1737165045505,-596.33166502,0.00020845,2]
[349400082,1737165045514,-150.0,0.00020853,2]
[349400084,1737165045525,-150.0,0.00020854,2]
[349400086,1737165045535,-150.0,0.00020854,2]
[349400088,1737165045544,-150.0,0.00020863,2]
[349400089,1737165045553,-150.0,0.00020865,2]
[349400091,1737165045563,-150.0,0.00020865,2]
[349400094,1737165045573,-1300.51630261,0.0002087,4]
[349400095,1737165045583,-500.0,0.00020872,2]
[349400097,1737165045594,-150.0,0.00020872,2]
[349400100,1737165045604,-3830.97966514,0.00020895,30]
[349400102,1737165045614,-1019.72565112,0.00020895,2]
[349400103,1737165045623,-1466.28360032,0.00020895,2]
[349400106,1737165045633,-1112.42738633,0.00020899,5]
[349400107,1737165045647,-671.00085033,0.00020899,2]
[349400109,1737165045658,-200738.94,0.000209,2]
[349400112,1737165045668,-707119.0,0.000209,2]
[349400114,1737165045678,-5800.0,0.000209,2]
[349400116,1737165045687,-151.0,0.000209,2]
[349400118,1737165045697,-151.0,0.000209,2]
[349400119,1737165045706,-151.0,0.000209,2]
[349400122,1737165045718,-151.0,0.000209,2]
[349400124,1737165045728,-151.0,0.000209,2]
[349400126,1737165045738,-2432.54325456,0.000209,2]
[349400128,1737165045749,-151.0,0.000209,2]
[349400131,1737165045758,-151.0,0.000209,2]
[349400134,1737165045768,-767.615518,0.000209,2]
[349400137,1737165045778,-151.0,0.000209,2]
[349400140,1737165045787,-151.0,0.000209,2]
[349400143,1737165045797,-152.148232,0.000209,2]
[349400146,1737165045806,-151.596862,0.000209,2]
[349400148,1737165045816,-167.120312,0.000209,2]
[349400150,1737165045826,-151.0,0.000209,2]
[349400152,1737165045835,-167.120312,0.000209,2]
[349400154,1737165045844,-151.0,0.000209,2]
[349400156,1737165045854,-151.0,0.000209,2]
[349400158,1737165045863,-151.0,0.000209,2]
[349400160,1737165045874,-152.92046,0.000209,2]
[349400162,1737165045883,-151.0,0.000209,2]
[349400164,1737165045892,-151.0,0.000209,2]
[349400166,1737165045902,-151.0,0.000209,2]
[349400169,1737165045912,-151.0,0.000209,2]
[349400171,1737165045921,-151.0,0.000209,2]
[349400172,1737165045931,-151.0,0.000209,2]
[349400174,1737165045941,-151.625102,0.000209,2]
[349400176,1737165045951,-151.0,0.000209,2]
[349400179,1737165045960,-151.0,0.000209,2]
[349400182,1737165045972,-151.0,0.000209,2]
[349400183,1737165045982,-151.0,0.000209,2]
[349400185,1737165045992,-151.0,0.000209,2]
[349400188,1737165046002,-151.0,0.000209,2]
[349400190,1737165046011,-151.0,0.000209,2]
[349400192,1737165046021,-151.0,0.000209,2]
[349400194,1737165046030,-151.0,0.000209,2]
[349400195,1737165046039,-564.637074,0.000209,2]
[349400198,1737165046048,-367.543646,0.000209,2]
[349400199,1737165046057,-564.637074,0.000209,2]
[349400201,1737165046067,-151.0,0.000209,2]
[349400204,1737165046077,-367.543646,0.000209,2]
[349400205,1737165046087,-151.0,0.000209,2]
[349400208,1737165046096,-151.866137,0.000209,2]
[349400210,1737165046106,-151.0,0.000209,2]
[349400211,1737165046115,-151.0,0.000209,2]
[349400214,1737165046131,-1169.217252,0.000209,2]
[349400217,1737165046151,-151.0,0.000209,2]
[349400221,1737165046172,-1169.217252,0.000209,2]
[349400224,1737165046192,-159.0,0.000209,4]
[349400226,1737165046207,-151.0,0.000209,2]
[349400229,1737165046229,-151.0,0.000209,2]
[349400233,1737165046250,-151.0,0.000209,2]
[349400236,1737165046271,-151.0,0.000209,2]
[349400239,1737165046291,-158.40128,0.000209,2]
[349400242,1737165046310,-193.999327,0.000209,2]
[349400245,1737165046327,-151.0,0.000209,2]
[349400247,1737165046341,-151.0,0.000209,2]
[349400250,1737165046360,-1636.167449,0.000209,2]
[349400253,1737165046376,-1636.167449,0.000209,2]
[349400255,1737165046394,-1636.167449,0.000209,2]
[349400258,1737165046410,-1636.167449,0.000209,2]
[349400260,1737165046424,-358.121661,0.000209,2]
[349400263,1737165046441,-358.121661,0.000209,2]
[349400266,1737165046459,-314.37644342,0.000209,2]
[349400268,1737165046476,-358.121661,0.000209,2]
[349400271,1737165046492,-358.121661,0.000209,2]
[349400273,1737165046508,-374.722734,0.000209,2]
[349400276,1737165046525,-374.722734,0.000209,2]
[349400279,1737165046540,-374.722734,0.000209,2]
[349400281,1737165046556,-374.722734,0.000209,2]
[349400284,1737165046571,-151.0,0.000209,2]
[349400286,1737165046586,-151.0,0.000209,2]
[349400289,1737165046602,-151.0,0.000209,2]
[349400291,1737165046618,-151.0,0.000209,2]
[349400294,1737165046634,-151.0,0.000209,2]
[349400297,1737165046649,-151.0,0.000209,2]
[349400301,1737165046665,-151.0,0.000209,2]
[349400305,1737165046680,-151.0,0.000209,2]
[349400309,1737165046696,-151.0,0.000209,2]
[349400313,1737165046713,-151.0,0.000209,2]
[349400317,1737165046728,-10000.0,0.000209,2]
[349400319,1737165046744,-10000.0,0.000209,2]
[349400322,1737165046760,-10000.0,0.000209,2]
[349400324,1737165046775,-10000.0,0.000209,2]
[349400327,1737165046791,-10000.0,0.000209,2]
[349400329,1737165046806,-10000.0,0.000209,2]
[349400332,1737165046821,-151.0,0.000209,2]
[349400335,1737165046838,-151.0,0.000209,2]
[349400337,1737165046854,-151.0,0.000209,2]
[349400340,1737165046870,-152.054105,0.000209,2]
[349400343,1737165046885,-151.0,0.000209,2]
[349400345,1737165046901,-151.0,0.000209,2]
[349400348,1737165046916,-182.59230295,0.000209,2]
[349400350,1737165046932,-151.0,0.000209,2]
[349400353,1737165046946,-151.0,0.000209,2]
[349400355,1737165046961,-151.0,0.000209,2]
[349400358,1737165046976,-214.20283956,0.000209,2]
[349400360,1737165046991,-2000.0,0.00020906,2]
[349400363,1737165047006,-200.0,0.00020906,2]
[349400365,1737165047021,-506.75,0.00020934,2]
[349400368,1737165047037,-1000.0,0.0002097,2]
[349400370,1737165047054,-1000.0,0.0002097,2]
[349400373,1737165047069,-1001.89193216,0.0002097,2]
[349400375,1737165047084,-500.0,0.0002097,2]
[349400378,1737165047106,-868.39183358,0.0002097,2]
[349400380,1737165047121,-500.0,0.0002097,2]
[349400383,1737165047136,-1000.0,0.0002097,2]
[349400386,1737165047152,-969.1544533,0.00020986,2]
[349400388,1737165047168,-248.0259762,0.00020986,2]
[349400391,1737165047182,-1622.1237291,0.00020986,2]
[349400406,1737165047329,-2929.754363,0.00020986,2]
[349400408,1737165047339,-202.0,0.0002099,2]
[349400410,1737165047348,-99439.0,0.00020999,2]
[349400412,1737165047358,-150.0,0.00020999,2]
[349400414,1737165047368,-150.0,0.00020999,2]
[349400416,1737165047377,-150.0,0.00020999,2]
[349400418,1737165047387,-219.70410176,0.00020999,2]
[349400420,1737165047396,-150.0,0.00020999,2]
[349400422,1737165047408,-1552.28832324,0.00020999,2]
[349400425,1737165047418,-360.96936712,0.00020999,2]
[349400427,1737165047427,-214.26888189,0.00020999,2]
[349400428,1737165047437,-15180.35347399,0.00021,2]
[349400431,1737165047451,-1524687.78567225,0.00021,10]
[349400436,1737165047498,-12691.2692979,0.00021,10]
[349400438,1737165047510,-643.3159777,0.00021,10]
[349400501,1737165048135,-155.301744,0.000209,2]
[349400503,1737165048145,-696.80148942,0.00021,10]
[349400505,1737165048157,-2583.37263834,0.00021,10]
[349400510,1737165048192,-18566.55176146,0.00021,10]
[349400512,1737165048204,-49516.89251067,0.00021,10]
[349400514,1737165048216,-124682.1757959,0.00021,10]
[349400516,1737165048228,-4717.80661952,0.00021,10]
[349400524,1737165048293,-183.81246079,0.00019879,2]
[349400526,1737165048302,-585.36320072,0.00019879,2]
[349400528,1737165048314,-239.16865518,0.00019879,2]
[349400530,1737165048323,-4764.73568331,0.00021,10]
[349400532,1737165048335,-416.18545275,0.00021,10]
[349400873,1737165058167,19999.999999,0.00012,2]
[349400875,1737165132874,500.0,0.00023,120]
[349400876,1737165149926,150.011811,0.00023,120]
[349400877,1737165150691,150.011811,0.00023,120]
[349400878,1737165151261,150.011811,0.00023,120]
[349400879,1737165151703,150.011811,0.00023,120]
[349400880,1737165152167,150.011811,0.00023,120]
[349400881,1737165152607,150.011811,0.00023,120]
[349400882,1737165153104,150.011811,0.00023,120]
[349400883,1737165153520,150.011811,0.00023,120]
[349400884,1737165153976,150.011811,0.00023,120]
[349400885,1737165154442,150.011811,0.00023,120]
[349400886,1737165175350,1000.0,0.00023,120]
[349400887,1737165377831,177.8,0.000231,120]
[349400889,1737165847381,162.7,0.00010137,2]
[349400892,1737166046131,-1664.63708511,0.00017636,2]
[349400893,1737166046162,-697.80822598,0.00017636,2]
[349400894,1737166050101,-646.81807964,0.00017636,2]
[349400895,1737166050123,-1792.0,0.000177,2]
[349400896,1737166050144,-226.61899668,0.00017736,2]
[349400910,1737166232289,-619.53546235,0.00017736,2]
[349400911,1737166232299,-409.8822205,0.00017736,2]
[349400912,1737166232312,-1243.96332047,0.00017736,2]
[349400913,1737166232321,-900.0,0.00017736,2]
[349400914,1737166232330,-770.31,0.0001812,2]
[349400915,1737166232339,-42486.0,0.00018343,2]
[349400916,1737166232349,-287.0,0.00018831,2]
[349400917,1737166232359,-2500.0,0.00018832,2]
[349400918,1737166232369,-900.0,0.00018832,2]
[349400919,1737166232378,-500.0,0.00018854,2]
[349400920,1737166232387,-2751.0,0.00018854,2]
[349400921,1737166232395,-1003.93110526,0.00018865,2]
[349400922,1737166232404,-250.0,0.00019156,2]
[349400923,1737166232414,-1852.42,0.00019161,2]
[349400924,1737166232423,-170.33,0.00019228,2]
[349400925,1737166232432,-305.06,0.00019284,2]
[349400926,1737166232442,-150.0,0.00019431,2]
[349400927,1737166232451,-3900.0,0.00019431,2]
[349400928,1737166232461,-1179.31,0.00019431,2]
[349400929,1737166232470,-331.65,0.00019484,2]
[349400930,1737166232480,-1911.71264814,0.00019484,2]
[349400931,1737166232492,-254.46,0.00019484,2]
[349400932,1737166232563,-4200.0,0.00019484,2]
[349400933,1737166232574,-3912.15955773,0.00019484,2]
[349400934,1737166232585,-2614.97457783,0.00019484,2]
[349400935,1737166232597,-3653.74999986,0.00019484,2]
[349400936,1737166232610,-986.35646838,0.00019484,2]
[349400937,1737166232621,-1151.55012815,0.00019484,2]
[349400938,1737166232632,-256.7011023,0.00019484,2]
[349400939,1737166232642,-4958.33551761,0.00019484,2]
[349400940,1737166232651,-667.3,0.0001949,2]
[349400941,1737166232660,-184.56,0.00019525,2]
[349400942,1737166232668,-200.3102,0.0001968,2]
[349400943,1737166232676,-2411.73380565,0.0001968,2]
[349400944,1737166232687,-2235.54614608,0.0001968,2]
[349400945,1737166232835,-2045.38724827,0.0001968,2]
[349400946,1737166232844,-178.29,0.00019689,2]
[349400947,1737166232853,-250.0,0.00019689,2]
[349400948,1737166232863,-1000.0,0.00019733,2]
[349400949,1737166232872,-2367.24,0.00019733,2]
[349400950,1737166232883,-173.536,0.00019733,2]
[349400951,1737166232892,-316.820499,0.00019768,2]
[349400952,1737166232901,-1479.4,0.00019779,2]
[349400953,1737166232912,-500.0,0.00019779,2]
[349400954,1737166232921,-2029.61,0.00019779,2]
[349400955,1737166232930,-193.32821529,0.00019779,2]
[349400956,1737166232942,-278.06409137,0.00019779,2]
[349400957,1737166232953,-279.11769334,0.00019779,2]
[349400958,1737166232962,-500.0,0.00019779,2]
[349400959,1737166232971,-885.75,0.00019779,2]
[349400960,1737166232980,-500.0,0.00019779,2]
[349400961,1737166232989,-20.66737999,0.00019779,2]
[349400962,1737166233000,-451.09213064,0.00019779,2]
[349400963,1737166233011,-166.25048937,0.00019779,2]
[349400964,1737166233020,-115.03940059,0.00019779,2]
[349400965,1737166238163,-500.0,0.00019779,2]
[349400966,1737166238175,-1105.20059941,0.00019779,2]
[349400967,1737166238185,-551.96,0.00019779,2]
[349400968,1737166238195,-1845.17,0.00019779,2]
[349400969,1737166238205,-844.7,0.00019779,2]
[349400970,1737166238214,-798.43,0.00019779,2]
[349400971,1737166238224,-978.07,0.00019779,2]
[349400972,1737166238233,-745.5,0.00019779,2]
[349400973,1737166238243,-500.0,0.00019779,2]
[349400974,1737166238252,-1107.58,0.00019779,2]
[349400975,1737166238261,-4282.22,0.00019779,2]
[349400976,1737166238270,-1685.1,0.00019779,2]
[349400977,1737166238280,-1581.76,0.00019779,2]
[349400978,1737166238289,-911.75,0.00019779,2]
[349400979,1737166238299,-1116.62,0.00019779,2]
[349400980,1737166238308,-1263.93,0.00019779,2]
[349400981,1737166238318,-1416.72,0.00019779,2]
[349400982,1737166238327,-1878.96,0.00019779,2]
[349400983,1737166238337,-2009.32,0.00019779,2]
[349400984,1737166238346,-500.0,0.00019779,2]
[349400985,1737166238355,-500.0,0.00019779,2]
[349400986,1737166238364,-2562.1,0.00019779,2]
[349400987,1737166238374,-3618.34,0.00019779,2]
[349400988,1737166238383,-721.05,0.00019779,2]
[349400989,1737166238400,-500.0,0.00019779,2]
[349400994,1737166238582,-500.0,0.00019779,2]
[349400996,1737166238592,-500.0,0.00019779,2]
[349400998,1737166238601,-500.0,0.00019779,2]
[349401000,1737166238610,-1019.1,0.00019779,2]
[349401002,1737166238619,-805.46,0.00019779,2]
[349401004,1737166238628,-623.82,0.00019779,2]
[349401006,1737166238638,-1458.32,0.00019779,2]
[349401008,1737166238647,-1150.87,0.00019779,2]
[349401010,1737166238656,-500.0,0.00019779,2]
[349401012,1737166238666,-1687.26,0.00019779,2]
[349401014,1737166238675,-500.0,0.00019779,2]
[349401016,1737166238684,-585.61,0.00019779,2]
[349401018,1737166238693,-500.0,0.00019779,2]
[349401020,1737166238702,-500.0,0.00019779,2]
[349401022,1737166238711,-512.40978,0.00019779,2]
[349401024,1737166238720,-771.37,0.00019779,2]
[349401025,1737166238729,-500.0,0.00019779,2]
[349401027,1737166238739,-858.18,0.00019779,2]
[349401029,1737166238748,-500.0,0.00019779,2]
[349401031,1737166238757,-500.0,0.00019779,2]
[349401033,1737166238766,-500.0,0.00019779,2]
[349401036,1737166238776,-4055.04,0.00019779,2]
[349401037,1737166238786,-500.0,0.00019779,2]
[349401039,1737166238795,-1083.59,0.00019779,2]
[349401041,1737166238805,-700.86,0.00019779,2]
[349401043,1737166238814,-1949.36,0.00019779,2]
[349401046,1737166238823,-764.84,0.00019779,2]
[349401048,1737166238835,-500.05191007,0.00019779,2]
[349401049,1737166238845,-500.0,0.00019779,2]
[349401051,1737166238854,-1761.72,0.00019779,2]
[349401053,1737166238863,-500.0,0.00019779,2]
[349401055,1737166238872,-2502.11,0.00019779,2]
[349401057,1737166238882,-100546.7562,0.0001978,2]
[349401059,1737166238892,-1000.0,0.0001978,2]
[349401061,1737166238901,-250.0,0.00019844,2]
[349401063,1737166238910,-500.0,0.00019878,2]
[349401065,1737166238919,-682.03,0.00019878,2]
[349401067,1737166238929,-222.57916245,0.00019878,2]
[349401069,1737166238938,-500.0,0.00019878,2]
[349401071,1737166238947,-500.0,0.00019878,2]